Workbook

Sheet ①交付申請書
A1: 様式第１号（第６条関係）
A3: 埼玉県障害福祉サービス事業所等光熱費等高騰対策支援事業補助金
A4: 交付申請書
A6: 第 号
A7: 令和 年 月 日
A9: （宛先）
A10: 埼玉県知事
A12: （申請者）
A13: 所 在 地
A14: 法人等の名称
A15: 代表者職氏名
A18: 下記により、埼玉県障害福祉サービス事業所等光熱費等高騰対策支援事業補助金の
A19: 事業補助金の交付を受けたいので、補助金等の交付手続等に関する規則第４条の規定によ
A20: り、関係書類を添えて申請します。
A22: 記
A24: １ 補助金交付申請額 | D24: 金 | E24: ='②-1申請額算出内訳（入所支援施設） (2)'!M27+'②-2申請額算出内訳 （共同生活援助系) (2)'!N27+'②-3申請額算出内訳 (児・者通所系) (2)'!N27+'②-4申請額算出内訳 (児・者訪問系)'!M27 -> 0 | G24: 円
A26: ２ 申請額算出内訳 | D26: 別紙１のとおり
A28: ３ 口座振込申出書 | D28: 別紙２のとおり
A30: ４ 光熱費に係る種別の申出書 | D30: 別紙３のとおり
A32: ５ 申請に係る施設・事業所の事業開始を確認できる書類
A33: （ ※指定申請書の写し等を添付）
E34: 【連絡先】
E35: 部署名
E36: 担当者氏名
E37: 電話番号
E38: e-mail

Sheet ②-1申請額算出内訳（入所支援施設） (2)
A1: 別紙１－１（児・者入所支援施設） | H1: 申請者(法人）名： | J1: =①交付申請書!F14 -> 0
A3: 申 請 額 算 出 内 訳
A6: № | B6: 事業所番号 | C6: 施設・事業所名 | D6: 住所 （市・町名） | E6: 住所２（区名以下） | F6: サービス種別 | G6: 事業開始日 | H6: 交付対象数（A） 入所施設 ➡ 定員数 | I6: 交付単位 人 事業所 住居 | J6: ガス | K6: 補助単価 (B) | L6: プロパンガスの場合、控除 | M6: 申請額 (A×B)
A7: 記入例 1 | B7: 2222222222 | C7: 世界埼玉にゅうしょ施設 | D7: 縄文市 | E7: 南区まがたま町１－２－３ | F7: 福祉型障害児入所施設 | G7: 2044-01-01 | H7: 55 | I7: 人 | J7: プロパンガス | K7: =VLOOKUP(F7&J7,食事提供加算有!A:E,5,FALSE) -> 18700 | L7: =VLOOKUP(F7&J7,食事提供加算有!A:F,6,FALSE) -> 1500 | M7: =H7*K7-L7 -> 1027000
A8: 記入例２ | B8: 1111222222 | C8: 川口にゅうしょ施設 | D8: AB市 | E8: 南区南町１－２－３ | F8: 医療型障害児入所施設 | G8: 2016-01-01 | H8: 40 | I8: 人 | J8: プロパンガス | K8: =VLOOKUP(F8&J8,食事提供加算有!A:E,5,FALSE) -> 18700 | L8: =VLOOKUP(F8&J8,食事提供加算有!A:F,6,FALSE) -> 1500 | M8: =H8*K8-L8 -> 746500
A9: 1 | M9: =H9*K9-L9 -> 0
A10: 2 | M10: =H10*K10-L10 -> 0
A11: 3
A12: 4
A13: 5 | M13: =H13*K13-L13 -> 0
A14: 6
A15: 7 | M15: 0
A16: 8 | M16: 0
A17: 9 | M17: 0
A18: 10 | M18: 0
A19: 11 | M19: 0
A20: 12 | M20: 0
A21: 13 | M21: 0
A22: 14 | M22: 0
A23: 15 | M23: 0
A24: 16 | M24: 0
A25: 17 | M25: 0
A26: 18 | M26: 0
L27: 合計 | M27: =SUM(M9:M26) -> 0
A29: ※事業所番号が未記入あるいは誤った番号を記載した場合は対象外となるので誤記などないよう十分に注意すること。
A30: ※「サービス種別」欄は、補助要綱別表１に掲げる種別を記載すること。
A31: ※「補助単価」欄は、補助要綱別表２に掲げる区分ごとの単価を記載すること。

Sheet ②-2申請額算出内訳 （共同生活援助系) (2)
A1: 別紙１－２（共同生活援助系） | H1: 申請者(法人）名： | J1: =①交付申請書!F14 -> 0
A3: 申 請 額 算 出 内 訳
A6: № | B6: 事業所番号 | C6: グループホームの住居名 ※住居毎に記載 | D6: 住所 （市・町名） | E6: 住所２（区名以下） | F6: サービス種別 | G6: 事業開始日 | H6: 交付対象数（A） ＧＨ➡１住居の定員数（1住居5人以下の場合は一律6人） | I6: 交付単位 人 | J6: 電力 （訪問、入所施設は記入不要） | K6: ガス | L6: 補助単価 (B) | M6: プロパンガスの場合、控除 | N6: 申請額 (A×B)
A7: 記入例 | B7: 1111111111 | C7: 大宮グループホーム１ | D7: 大和市 | E7: 北区さいたま町１－２－３ | F7: 共同生活援助（介護サービス包括型） | G7: 2043-01-01 | H7: 10 | I7: 人 | J7: 高圧 | K7: 都市ガス | L7: =VLOOKUP(F7&J7&K7,食事提供加算無!A:E,5,FALSE) -> 7300 | M7: =VLOOKUP(F7&J7&K7,食事提供加算無!A:F,6,FALSE) -> 0 | N7: =H7*L7-M7 -> 73000
A8: 記入例 ２ | B8: 2222222222 | C8: 大宮グループホーム２ | D8: 大和市 | E8: 南区まがたま町１－２－３ | F8: 共同生活援助（介護サービス包括型） | G8: 2044-01-01 | H8: 6 | I8: 人 | J8: 低圧 | K8: プロパンガス | L8: =VLOOKUP(F8&J8&K8,食事提供加算無!A:E,5,FALSE) -> 5200 | M8: =VLOOKUP(F8&J8&K8,食事提供加算無!A:F,6,FALSE) -> 1500 | N8: 29700
A9: 1 | N9: =H9*L9-M9 -> 0 | T9: 共同生活援助（指定共同生活援助）
A10: 2 | T10: 共同生活援助（日中サービス支援型）
A11: 3 | T11: 共同生活援助（外部サービス利用型）
A12: 4
A13: 5
A14: 6
A15: 7
A16: 8
A17: 9
A18: 10
A19: 11
A20: 12 | N20: =H20*L20-M20 -> 0
A21: 13 | N21: =H21*L21-M21 -> 0
A22: 14 | N22: 0
A23: 15 | N23: 0
A24: 16 | N24: 0
A25: 17 | N25: 0
A26: 18
L27: 合計 | N27: =SUM(N9:N26) -> 0
A29: ※事業所番号が未記入あるいは誤った番号を記載した場合は対象外となるので誤記などないよう十分に注意すること。
A30: ※「サービス種別」欄は、補助要綱別表１に掲げる種別を記載すること。
A31: ※「補助単価」欄は、補助要綱別表２に掲げる区分ごとの単価を記載すること。

Sheet ②-3申請額算出内訳 (児・者通所系) (2)
A1: 別紙１－３（児・者通所系） | H1: 申請者(法人）名： | J1: =①交付申請書!F14 -> 0
A3: 申 請 額 算 出 内 訳
A6: № | B6: 事業所番号 | C6: 施設・事業所名 | D6: 住所 （市・町名） | E6: 住所２（区名以下） | F6: サービス種別 | G6: 事業開始日 | H6: 交付対象数（A） 通所・訪問➡ 事業所数 | I6: 交付単位 人 事業所 住居 | J6: 食事提供体制加算 （児通所は児童発達支援センターのみ。食事提供加算を請求している場合） | K6: 電力 （訪問、入所施設は記入不要） | L6: ガス | M6: 補助単価 (B) | N6: 申請額 (A×B)
A7: 記入例 | B7: 1111111111 | C7: 世界さいたま事業所 | D7: 大和市 | E7: 北区さいたま町１－２－３ | F7: 就労移行支援 | G7: 2043-01-01 | H7: 1 | I7: 事業所 | J7: 有 | K7: 高圧 | L7: 都市ガス | M7: =VLOOKUP(F7&K7&L7,食事提供加算有!A:F,5,FALSE) -> 218100 | N7: =H7*M7 -> 218100
A8: 記入例 ２ | B8: 2222222222 | C8: さいたま放課後等デイサービス | D8: 縄文市 | E8: 南区まがたま町１－２－３ | F8: 児童発達支援 | G8: 2044-01-01 | H8: 1 | I8: 事業所 | J8: 無 | K8: 低圧 | L8: プロパンガス | M8: =VLOOKUP(F8&K8&L8,食事提供加算無!A:F,5,FALSE) -> 29600 | N8: =H8*M8 -> 29600
A9: 1 | N9: =H9*M9 -> 0 | S9: 生活介護
A10: 2 | S10: 短期入所（単独型）
A11: 3 | S11: 療養介護
A12: 4 | S12: 自立訓練（機能訓練）
A13: 5 | S13: 自立訓練（生活訓練）
A14: 6 | N14: =H14*M14 -> 0 | S14: 自立訓練（宿泊型）
A15: 7 | N15: 0 | S15: 就労移行支援
A16: 8 | N16: 0 | S16: 就労継続支援Ａ型
A17: 9 | N17: 0 | S17: 就労継続支援Ｂ型
A18: 10 | N18: 0 | S18: 児童発達支援
A19: 11 | N19: 0 | S19: 児童発達支援センター
A20: 12 | N20: 0 | S20: 医療型児童発達支援センター
A21: 13 | N21: 0 | S21: 放課後等デイサービス
A22: 14 | N22: 0
A23: 15 | N23: 0
A24: 16 | N24: 0
A25: 17 | N25: 0
A26: 18 | N26: 0
M27: 合計 | N27: =SUM(N9:N26) -> 0
A29: ※事業所番号が未記入あるいは誤った番号を記載した場合は対象外となるので誤記などないよう十分に注意すること。
A30: ※「サービス種別」欄は、補助要綱別表１に掲げる種別を記載すること。
A31: ※「補助単価」欄は、補助要綱別表２に掲げる区分ごとの単価を記載すること。

Sheet ②-4申請額算出内訳 (児・者訪問系)
A1: 別紙１－４（児・者訪問系） | H1: 申請者(法人）名： | J1: =①交付申請書!F14 -> 0
A3: 申 請 額 算 出 内 訳
A6: № | B6: 事業所番号 | C6: 施設・事業所名 | D6: 住所 （市・町名） | E6: 住所２（区名以下） | F6: サービス種別 | G6: 事業開始日 | H6: 交付対象数（A） 通所・訪問➡ 事業所数 | I6: 交付単位 人 事業所 住居 | J6: ガス | K6: 1人当たりの平均移動距離/日 | L6: 補助単価 (B) | M6: 申請額 (A×B)
A7: 記入例 | B7: 1111111111 | C7: 世界さいたま事業所 | D7: 大和市 | E7: 北区さいたま町１－２－３ | F7: 居宅介護 | G7: 2043-01-01 | H7: 1 | I7: 事業所 | J7: 都市ガス | K7: 12㌔未満 | L7: =_xlfn.IFNA(VLOOKUP(F7&J7&K7,食事提供加算無!A7:F38,6,FALSE),"該当なし") -> 18300 | M7: =L7 -> 18300
A8: 記入例 ２ | B8: 2222222222 | C8: さいたま放課後等訪問支援 | D8: 縄文市 | E8: 南区まがたま町１－２－３ | F8: 保育所等訪問支援 | G8: 2044-01-01 | H8: 1 | I8: 事業所 | J8: プロパンガス | K8: 12㌔～22㌔未満 | L8: =_xlfn.IFNA(VLOOKUP(F8&J8&K8,食事提供加算無!A8:F57,6,FALSE),"該当なし") -> 24900 | M8: 24900
A9: 1 | L9: =_xlfn.IFNA(VLOOKUP(F9&J9&K9,食事提供加算無!$A$9:$F$58,6,FALSE),"該当なし") -> 該当なし | M9: =L9 -> 該当なし | P9: 居宅介護
A10: 2 | L10: =_xlfn.IFNA(VLOOKUP(F10&J10&K10,食事提供加算無!$A$9:$F$58,6,FALSE),"該当なし") -> 該当なし | M10: =L10 -> 該当なし | P10: 重度訪問介護
A11: 3 | L11: =_xlfn.IFNA(VLOOKUP(F11&J11&K11,食事提供加算無!$A$9:$F$58,6,FALSE),"該当なし") -> 該当なし | M11: 該当なし | P11: 同行援護
A12: 4 | L12: =_xlfn.IFNA(VLOOKUP(F12&J12&K12,食事提供加算無!$A$9:$F$58,6,FALSE),"該当なし") -> 該当なし | M12: 該当なし | P12: 行動援護
A13: 5 | L13: =_xlfn.IFNA(VLOOKUP(F13&J13&K13,食事提供加算無!$A$9:$F$58,6,FALSE),"該当なし") -> 該当なし | M13: 該当なし | P13: 重度障害者等包括支援
A14: 6 | L14: =_xlfn.IFNA(VLOOKUP(F14&J14&K14,食事提供加算無!$A$9:$F$58,6,FALSE),"該当なし") -> 該当なし | M14: 該当なし | P14: 居宅訪問型児童発達支援
A15: 7 | L15: =_xlfn.IFNA(VLOOKUP(F15&J15&K15,食事提供加算無!$A$9:$F$58,6,FALSE),"該当なし") -> 該当なし | M15: 該当なし | P15: 保育所等訪問支援
A16: 8 | L16: =_xlfn.IFNA(VLOOKUP(F16&J16&K16,食事提供加算無!$A$9:$F$58,6,FALSE),"該当なし") -> 該当なし | M16: 該当なし | P16: 児訪問系
A17: 9 | L17: =_xlfn.IFNA(VLOOKUP(F17&J17&K17,食事提供加算無!$A$9:$F$58,6,FALSE),"該当なし") -> 該当なし | M17: 該当なし
A18: 10 | L18: =_xlfn.IFNA(VLOOKUP(F18&J18&K18,食事提供加算無!$A$9:$F$58,6,FALSE),"該当なし") -> 該当なし | M18: 該当なし
A19: 11 | L19: =_xlfn.IFNA(VLOOKUP(F19&J19&K19,食事提供加算無!$A$9:$F$58,6,FALSE),"該当なし") -> 該当なし | M19: 該当なし
A20: 12 | L20: =_xlfn.IFNA(VLOOKUP(F20&J20&K20,食事提供加算無!$A$9:$F$58,6,FALSE),"該当なし") -> 該当なし | M20: 該当なし
A21: 13 | L21: =_xlfn.IFNA(VLOOKUP(F21&J21&K21,食事提供加算無!$A$9:$F$58,6,FALSE),"該当なし") -> 該当なし | M21: 該当なし
A22: 14 | L22: =_xlfn.IFNA(VLOOKUP(F22&J22&K22,食事提供加算無!$A$9:$F$58,6,FALSE),"該当なし") -> 該当なし | M22: 該当なし
A23: 15 | L23: =_xlfn.IFNA(VLOOKUP(F23&J23&K23,食事提供加算無!$A$9:$F$58,6,FALSE),"該当なし") -> 該当なし | M23: 該当なし
A24: 16 | L24: =_xlfn.IFNA(VLOOKUP(F24&J24&K24,食事提供加算無!$A$9:$F$58,6,FALSE),"該当なし") -> 該当なし | M24: 該当なし
A25: 17 | L25: =_xlfn.IFNA(VLOOKUP(F25&J25&K25,食事提供加算無!$A$9:$F$58,6,FALSE),"該当なし") -> 該当なし | M25: 該当なし
A26: 18 | L26: =_xlfn.IFNA(VLOOKUP(F26&J26&K26,食事提供加算無!$A$9:$F$58,6,FALSE),"該当なし") -> 該当なし | M26: 該当なし
L27: 合計 | M27: =SUM(M9:M26) -> 0
A29: ※事業所番号が未記入あるいは誤った番号を記載した場合は対象外となるので誤記などないよう十分に注意すること。
A30: ※「サービス種別」欄は、補助要綱別表１に掲げる種別を記載すること。
A31: ※「補助単価」欄は、補助要綱別表２に掲げる区分ごとの単価を記載すること。

Sheet 訪問系のガソリン区分計算表（別紙1-5）
A1: 別紙1-5
A2: 〇訪問系のガソリン区分計算表（別紙1-5） ※複数事業所がある場合はシートをコピーして使用してください。
A3: １．事業所情報
A4: 事業所番号 | B4: 事業所名 | D4: サービス種別
A7: ２．ガソリン区分
A8: 1日の平均 移動距離 （常勤換算 1人あたり） （㎞） | B8: ガソリン区分
A9: =ROUNDUP(E43/B43,0) ->  | B9: =IF(A9<12,食事提供加算無!A179,IF(AND(A9>=12,A9<22),食事提供加算無!A180,食事提供加算無!A181)) -> 
A11: ３．計算シート
B12: 常勤 換算数 | C12: 令和7年3月の 訪問に係る 総移動距離 （㎞） | D12: 令和7年3月 の勤務日数 （日） | E12: 1日あたりの 移動距離 （㎞）
A13: 介護職員1 | E13: =IFERROR(ROUNDUP(C13/D13,0),0) -> 0
A14: 介護職員2 | E14: =IFERROR(ROUNDUP(C14/D14,0),0) -> 0
A15: 介護職員3 | E15: 0
A16: 介護職員4 | E16: 0
A17: 介護職員5 | E17: 0
A18: 介護職員6 | E18: 0
A19: 介護職員7 | E19: 0
A20: 介護職員8 | E20: 0
A21: 介護職員9 | E21: 0
A22: 介護職員10 | E22: 0
A23: 介護職員11 | E23: 0
A24: 介護職員12 | E24: 0
A25: 介護職員13 | E25: 0
A26: 介護職員14 | E26: 0
A27: 介護職員15 | E27: 0
A28: 介護職員16 | E28: 0
A29: 介護職員17 | E29: 0
A30: 介護職員18 | E30: 0
A31: 介護職員19 | E31: 0
A32: 介護職員20 | E32: 0
A33: 介護職員21 | E33: 0
A34: 介護職員22 | E34: 0
A35: 介護職員23 | E35: 0
A36: 介護職員24 | E36: 0
A37: 介護職員25 | E37: 0
A38: 介護職員26 | E38: 0
A39: 介護職員27 | E39: 0
A40: 介護職員28 | E40: 0
A41: 介護職員29 | E41: 0
A42: 介護職員30 | E42: 0
A43: 計 | B43: =SUM(B13:B42) -> 0 | C43: =SUM(C13:C42) -> 0 | D43: 0 | E43: =SUM(E13:E42) -> 0
A45: ※自転車での移動に係る距離数も上記計算に含めてください。
A46: ※職員個人の積上げによる積算が困難な場合は、「計」の欄に総数のみを入力して移動距離を算出することも
A47: 可能です。
A48: ※本様式による以外の方法により介護職員等の移動距離を算出した場合は、その算出方法及び算出結果を
A49: 県に提出すること。その場合は本様式の提出は要しない。

Sheet ③口座振替申出書
A1: 別紙２
A3: 埼玉県障害福祉サービス事業所等光熱費等高騰対策支援事業
A4: 補助金口座振込申出書
A6: （宛先）
A7: 埼玉県知事 大野 元裕
G9: 住 所 | I9: =①交付申請書!F13 -> 0
G10: 法人等の名称 | I10: =①交付申請書!F14 -> 0
G11: 代表者職氏名 | I11: =①交付申請書!F15 -> 0
A13: 令和 年 月 日付けで申請した標記補助金について、交付決定を受けた
A14: 場合、下記口座に振り込んでください。
A15: 記
C18: 金融機関名 | I18: 金融機関コード
C19: 支店名 | I19: 支店コード
C20: 口座種別 | I20: 口座番号
C21: 口座名義(漢字)
C22: 口座名義(カナ)
A24: ※補助金の振込を希望する金融機関の口座名義、金融機関名、支店名、及び口座 番号等を確認できる通帳等の写しを添付すること。

Sheet ④口座の写し添付用シート

Sheet ⑤光熱費申出書
A1: 別紙３
A3: 埼玉県障害福祉サービス事業所（又は住居）等光熱費等高騰対策
A4: 支援事業補助金光熱費に係る種別の申出書
A6: （宛先）
A7: 埼玉県知事 大野 元裕
G9: 住 所 | I9: =①交付申請書!F13 -> 0
G10: 法人等の名称 | I10: =①交付申請書!F14 -> 0
G11: 代表者職氏名 | I11: =①交付申請書!F15 -> 0
A13: 令和 年 月 日付けで申請した標記補助金について、事業所（又は住居）等の光熱費の種別
A14: は下記のとおりです。
A16: 記
A17: １ 令和５年度第１回又は第２回補助金を申請した事業所（又は住居）
C18: 光熱費の契約内容に変更無の場合、添付書類（電気、ガスの明細書等）の提出は不要です。
C19: 事業所（又は住居）名
C20: 変更の有無
C22: 事業所（又は住居）名
C23: 変更の有無
C25: 事業所（又は住居）名
C26: 変更の有無
C28: 事業所（又は住居）名
C29: 変更の有無
C31: 事業所（又は住居）名
C32: 変更の有無
C34: 事業所（又は住居）名
C35: 変更の有無
C37: 事業所（又は住居）名
C38: 変更の有無
C40: 事業所（又は住居）名
C41: 変更の有無
C43: 事業所（又は住居）名
C44: 変更の有無
C46: 事業所（又は住居）名
C47: 変更の有無
A49: ２ 令和５年度第１回補助金申請時から光熱費に変更有の事業所（又は住居）、又は新たに申請する
C50: 事業所（又は住居）（下記に種別を記載するとともに、添付書類を提出してください。）
C51: 事業所（又は住居）名
C52: 電 気
C53: ガ ス
C55: 事業所（又は住居）名
C56: 電 気
C57: ガ ス
C59: 事業所（又は住居）名
C60: 電 気
C61: ガ ス
C63: 事業所（又は住居）名
C64: 電 気
C65: ガ ス
C67: 事業所（又は住居）名
C68: 電 気
C69: ガ ス
C71: 事業所（又は住居）名
C72: 電 気
C73: ガ ス
C75: 事業所（又は住居）名
C76: 電 気
C77: ガ ス
C79: 事業所（又は住居）名
C80: 電 気
C81: ガ ス
C83: 事業所（又は住居）名
C84: 電 気
C85: ガ ス
C87: 事業所（又は住居）名
C88: 電 気
C89: ガ ス
A91: ※１ 施設入所支援（障害者入所支援施設、福祉型障害児入所施設および医療型障害児入所施設。）、訪問系（居宅介護、重度訪問介護、同行援護、行動援護および重度障害者等包括支援）および児訪問系（児訪問系、居宅訪問型児童発達支援および保育所等訪問支援。）は電気の欄は記入は不要、ガスのみ記入すること。
A92: ※２ 電気、ガスの直近の明細書の写しを添付すること。
A93: ※３ 行が足りないない場合、適宜追加してください。

Sheet ⑥電気・ガスの契約種別がわかるもの
A2: １ 電力 （高圧 又は 低圧 が分かるもの）
A31: ２ ガス （都市ガス 又は プロパンガス か分かるもの）

Sheet 請求書
A1: 参考
A3: 埼玉県障害福祉サービス事業所等光熱費等高騰対策支援事業
A4: 補助金請求書
A7: =①交付申請書!A7 -> 令和 年 月 日
A9: （宛先）
A10: 埼玉県知事
A12: （申請者）
A13: 所 在 地 | F13: =①交付申請書!F13 -> 0
A14: 法人等の名称 | F14: =①交付申請書!F14 -> 0
A15: 代表者職氏名 | F15: =①交付申請書!F15 -> 0
A18: 下記により、埼玉県障害福祉サービス事業所等光熱費等高騰対策支援事業補助金
A19: の交付確定通知を受けたので、該当する補助金額を請求します。
A22: 記
A24: １ 補助金請求額 | D24: 金 | E24: =①交付申請書!E24 -> 0 | G24: 円
E32: 【連絡先】
E33: 部署名 | F33: =①交付申請書!F35 -> 0
E34: 担当者氏名 | F34: =①交付申請書!F36 -> 0
E35: 電話番号 | F35: =①交付申請書!F37 -> 0
E36: e-mail | F36: =①交付申請書!F38 -> 0

Sheet 交付金checklist
W1: No. | Z1: =IF([5]基本情報入力シート!R11="","",[5]基本情報入力シート!R11) -> 
A4: 埼玉県障害福祉サービス事業所等光熱費等高騰対策支援事業補助金チェックリスト
A6: ◎ 基本情報
A8: フリガナ
A9: 法人名 | G9: =①交付申請書!F14 -> 0
A10: 法人所在地 | G10: 〒
G11: =①交付申請書!F13 -> 0
A13: フリガナ
A14: 書類作成担当者 | X14: 電話番号
A15: 連絡先 | G15: FAX番号 | T15: E-mail
A16: ※連絡先は必ず日中連絡できる電話番号を記載すること。不明な点等があれば事務局から問い合わせがあります。
B17: 以下の点を確認し、全ての項目にチェックして下さい。
B18: ※（チェックできない項目があれば申請内容の修正が必要です。見直してください）
B19: 確認項目
C20: 令和７年３月１日時点で県から障害福祉サービス事業所、障害児者支援施設の指定を受けています。
C21: 令和７年３月１日時点で事業の休止、廃止はしていません。
C22: 補助金申請に必要な資料はすべて添付しています。
C23: 申請額算出内訳表には、必要な項目がすべて記載しています。
C24: （提供サービスが異なっていても同じ住所地の事業所は申請できません。） 同じ住所の事業所で２重申請はしていません。
C25: （提供サービスが異なっていても同じ住所地の事業所は申請できません。高齢者等に対する訪問介護等も含みます。） 同じ住所の事業所で２重申請はしていません。
C26: （訪問系及び入所支援施設は確認不要） 電力（高圧又は低圧）の選択に誤りはありません。
C27: ガス（都市ガス又はプロパンガス）の選択に誤りはありません。
C28: （訪問系の事業所は）介護職員1人当たりの平均移動距離／日の選択に誤りはありません。
C29: （障害児通所で食事有を選択する場合） 児童発達支援センターであり、令和７年３月１日時点で食事提供加算を請求しており、３月３１日まで継続する。
B31: ※ | C31: 各証明資料は、指定権者からの求めがあった場合には、速やかに提出すること。
B32: ※ | C32: 本表への虚偽記載の他、交付金の請求に関して不正があった場合は、指定の取消しや補助金額の返還を求めることになります。
B35: 記載内容及び添付資料に虚偽がないことを証明するとともに、記載内容を証明する資料を適切に保管していることを誓約します。
B37: 令和 | F37: 年 | I37: 月 | L37: 日 | N37: 法人名 | Q37: =①交付申請書!F14 -> 0
N38: 代表者 | Q38: 職名 | X38: 氏名
B43: .

Sheet 食事提供加算有 (hidden)
B1: 通所系 | C1: 支給単位 | D1: 高圧かつ都市ガスを利用している場合 | E1: 高圧かつプロパンガスを利用している場合 | F1: 低圧かつ都市ガスを利用している場合 | G1: 低圧かつプロパンガスを利用している場合 | H1: 児・者 入所支援施設
B2: 生活介護 | C2: １事業所当たり | D2: =食事提供加算無!D62+140600 -> 218100 | E2: =食事提供加算無!E62+140600 -> 219500 | F2: =食事提供加算無!F62+140600 -> 199900 | G2: =食事提供加算無!G62+140600 -> 201300 | H2: 障害者入所支援施設
B3: 短期入所（単独型） | H3: 福祉型障害児入所施設
H4: 医療型障害児入所施設
B5: 自立訓練（機能訓練） | J5: 218100 | K5: 219500 | L5: 199900 | M5: 201300
B6: 自立訓練（生活訓練）
B7: 自立訓練（宿泊型）
B8: 就労移行支援
B9: 就労継続支援Ａ型
B10: 就労継続支援Ｂ型
A12: key | B12: 通所系 | C12: 高圧・低圧 | D12: 都市ガス・プロパンガス | E12: 金額
A13: =B13&C13&D13 -> 生活介護高圧都市ガス | B13: 生活介護 | C13: 高圧 | D13: 都市ガス | E13: 218100
A14: =B14&C14&D14 -> 生活介護高圧プロパンガス | B14: 生活介護 | C14: 高圧 | D14: プロパンガス | E14: 219500
A15: 生活介護低圧都市ガス | B15: 生活介護 | C15: 低圧 | D15: 都市ガス | E15: 199900
A16: 生活介護低圧プロパンガス | B16: 生活介護 | C16: 低圧 | D16: プロパンガス | E16: 201300
A17: 短期入所（単独型）高圧都市ガス | B17: 短期入所（単独型） | C17: 高圧 | D17: 都市ガス | E17: 218100
A18: 短期入所（単独型）高圧プロパンガス | B18: 短期入所（単独型） | C18: 高圧 | D18: プロパンガス | E18: 219500
A19: 短期入所（単独型）低圧都市ガス | B19: 短期入所（単独型） | C19: 低圧 | D19: 都市ガス | E19: 199900
A20: 短期入所（単独型）低圧プロパンガス | B20: 短期入所（単独型） | C20: 低圧 | D20: プロパンガス | E20: 201300
A21: 自立訓練（機能訓練）高圧都市ガス | B21: 自立訓練（機能訓練） | C21: 高圧 | D21: 都市ガス | E21: 218100
A22: 自立訓練（機能訓練）高圧プロパンガス | B22: 自立訓練（機能訓練） | C22: 高圧 | D22: プロパンガス | E22: 219500
A23: 自立訓練（機能訓練）低圧都市ガス | B23: 自立訓練（機能訓練） | C23: 低圧 | D23: 都市ガス | E23: 199900
A24: 自立訓練（機能訓練）低圧プロパンガス | B24: 自立訓練（機能訓練） | C24: 低圧 | D24: プロパンガス | E24: 201300
A25: 自立訓練（生活訓練）高圧都市ガス | B25: 自立訓練（生活訓練） | C25: 高圧 | D25: 都市ガス | E25: 218100
A26: 自立訓練（生活訓練）高圧プロパンガス | B26: 自立訓練（生活訓練） | C26: 高圧 | D26: プロパンガス | E26: 219500
A27: 自立訓練（生活訓練）低圧都市ガス | B27: 自立訓練（生活訓練） | C27: 低圧 | D27: 都市ガス | E27: 199900
A28: 自立訓練（生活訓練）低圧プロパンガス | B28: 自立訓練（生活訓練） | C28: 低圧 | D28: プロパンガス | E28: 201300
A29: 自立訓練（宿泊型）高圧都市ガス | B29: 自立訓練（宿泊型） | C29: 高圧 | D29: 都市ガス | E29: 218100
A30: 自立訓練（宿泊型）高圧プロパンガス | B30: 自立訓練（宿泊型） | C30: 高圧 | D30: プロパンガス | E30: 219500
A31: 自立訓練（宿泊型）低圧都市ガス | B31: 自立訓練（宿泊型） | C31: 低圧 | D31: 都市ガス | E31: 199900
A32: 自立訓練（宿泊型）低圧プロパンガス | B32: 自立訓練（宿泊型） | C32: 低圧 | D32: プロパンガス | E32: 201300
A33: 就労移行支援高圧都市ガス | B33: 就労移行支援 | C33: 高圧 | D33: 都市ガス | E33: 218100
A34: 就労移行支援高圧プロパンガス | B34: 就労移行支援 | C34: 高圧 | D34: プロパンガス | E34: 219500
A35: 就労移行支援低圧都市ガス | B35: 就労移行支援 | C35: 低圧 | D35: 都市ガス | E35: 199900
A36: 就労移行支援低圧プロパンガス | B36: 就労移行支援 | C36: 低圧 | D36: プロパンガス | E36: 201300
A37: 就労継続支援Ａ型高圧都市ガス | B37: 就労継続支援Ａ型 | C37: 高圧 | D37: 都市ガス | E37: 218100
A38: 就労継続支援Ａ型高圧プロパンガス | B38: 就労継続支援Ａ型 | C38: 高圧 | D38: プロパンガス | E38: 219500
A39: 就労継続支援Ａ型低圧都市ガス | B39: 就労継続支援Ａ型 | C39: 低圧 | D39: 都市ガス | E39: 199900
A40: 就労継続支援Ａ型低圧プロパンガス | B40: 就労継続支援Ａ型 | C40: 低圧 | D40: プロパンガス | E40: 201300
A41: =B41&C41&D41 -> 就労継続支援Ｂ型高圧都市ガス | B41: 就労継続支援Ｂ型 | C41: 高圧 | D41: 都市ガス | E41: 218100
A42: 就労継続支援Ｂ型高圧プロパンガス | B42: 就労継続支援Ｂ型 | C42: 高圧 | D42: プロパンガス | E42: 219500
A43: 就労継続支援Ｂ型低圧都市ガス | B43: 就労継続支援Ｂ型 | C43: 低圧 | D43: 都市ガス | E43: 199900
A44: 就労継続支援Ｂ型低圧プロパンガス | B44: 就労継続支援Ｂ型 | C44: 低圧 | D44: プロパンガス | E44: 201300
B48: 児通所系 | C48: 支給単位 | D48: 高圧かつ都市ガスを利用している場合 | E48: 低圧かつプロパンガスを利用している場合 | F48: 低圧かつ都市ガスを利用している場合 | G48: 低圧かつプロパンガスを利用している場合
B49: 児童発達支援センター | C49: １事業所当たり | D49: =食事提供加算無!D134+140600 -> 179350 | E49: =食事提供加算無!E134+140600 -> 179300 | F49: =食事提供加算無!F134+140600 -> 170250 | G49: =食事提供加算無!G134+140600 -> 170200
B51: 医療型児童発達支援センター
A54: key | B54: 通所系 | C54: 高圧・低圧 | D54: 都市ガス・プロパンガス | E54: 金額
A55: =B55&C55&D55 -> 児童発達支援センター高圧都市ガス | B55: 児童発達支援センター | C55: 高圧 | D55: 都市ガス | E55: 179350
A56: 児童発達支援センター高圧プロパンガス | B56: 児童発達支援センター | C56: 高圧 | D56: プロパンガス | E56: 179300
A57: 児童発達支援センター低圧都市ガス | B57: 児童発達支援センター | C57: 低圧 | D57: 都市ガス | E57: 170250
A58: 児童発達支援センター低圧プロパンガス | B58: 児童発達支援センター | C58: 低圧 | D58: プロパンガス | E58: 170200
A59: 医療型児童発達支援センター高圧都市ガス | B59: 医療型児童発達支援センター | C59: 高圧 | D59: 都市ガス | E59: 179350
A60: 医療型児童発達支援センター高圧プロパンガス | B60: 医療型児童発達支援センター | C60: 高圧 | D60: プロパンガス | E60: 179300
A61: 医療型児童発達支援センター低圧都市ガス | B61: 医療型児童発達支援センター | C61: 低圧 | D61: 都市ガス | E61: 170250
A62: 医療型児童発達支援センター低圧プロパンガス | B62: 医療型児童発達支援センター | C62: 低圧 | D62: プロパンガス | E62: 170200
B64: 児・者 入所支援施設 | C64: 支給単位 | D64: 都市ガスを利用している場合 | E64: プロパンガスを利用している場合
B65: 障害者入所支援施設 | C65: 定員１人当たり | D65: 19300 | E65: 18700
B66: 福祉型障害児入所施設
B67: 医療型障害児入所施設
A69: key | B69: 児・者 入所支援施設 | C69: 高圧・低圧 | D69: 都市ガス・プロパンガス | E69: 金額 | F69: プロパンガスの場合、控除
A70: =B70&D70 -> 障害者入所支援施設都市ガス | B70: 障害者入所支援施設 | C70: - | D70: 都市ガス | E70: 19300 | F70: 0
A71: =B71&D71 -> 障害者入所支援施設プロパンガス | B71: 障害者入所支援施設 | C71: - | D71: プロパンガス | E71: 18700 | F71: 1500
A72: 福祉型障害児入所施設都市ガス | B72: 福祉型障害児入所施設 | C72: - | D72: 都市ガス | E72: 19300 | F72: 0
A73: 福祉型障害児入所施設プロパンガス | B73: 福祉型障害児入所施設 | C73: - | D73: プロパンガス | E73: 18700 | F73: 1500
A74: 医療型障害児入所施設都市ガス | B74: 医療型障害児入所施設 | C74: - | D74: 都市ガス | E74: 19300 | F74: 0
A75: 医療型障害児入所施設プロパンガス | B75: 医療型障害児入所施設 | C75: - | D75: プロパンガス | E75: 18700 | F75: 1500

Sheet 食事提供加算無 (hidden)
B1: 訪問系 | C1: 支給単位 | D1: 都市ガスを利用している場合 | E1: プロパンガスを利用している場合 | I1: サービス種別
B2: 居宅介護 | C2: １事業所当たり | D2: 20800 | E2: 19800 | I2: 生活介護
B3: 重度訪問介護 | I3: 短期入所（単独型）
B4: 同行援護 | I4: 療養介護
B5: 行動援護 | I5: 自立訓練（機能訓練）
B6: 重度障害者等包括支援 | I6: 自立訓練（生活訓練）
I7: 自立訓練（宿泊型）
A8: key | B8: 訪問系 | C8: 高圧・低圧 | D8: 都市ガス・プロパンガス | E8: 1人当たりの平均移動距離/日 | F8: 金額 | I8: 就労移行支援
A9: =B9&D9&E9 -> 居宅介護都市ガス同一建物減算有 | B9: 居宅介護 | C9: - | D9: 都市ガス | E9: 同一建物減算有 | F9: 10500
A10: 居宅介護プロパンガス同一建物減算有 | B10: 居宅介護 | C10: - | D10: プロパンガス | E10: 同一建物減算有 | F10: 10000
A11: =B11&D11&E11 -> 居宅介護都市ガス12㌔未満 | B11: 居宅介護 | C11: - | D11: 都市ガス | E11: 12㌔未満 | F11: 18300 | I11: 就労継続支援Ａ型
A12: =B12&D12&E12 -> 居宅介護プロパンガス12㌔未満 | B12: 居宅介護 | C12: - | D12: プロパンガス | E12: 12㌔未満 | F12: 17800 | I12: 就労継続支援Ｂ型
A13: 居宅介護都市ガス12㌔～22㌔未満 | B13: 居宅介護 | C13: - | D13: 都市ガス | E13: 12㌔～22㌔未満 | F13: 25400 | I13: 児童発達支援
A14: 居宅介護プロパンガス12㌔～22㌔未満 | B14: 居宅介護 | C14: - | D14: プロパンガス | E14: 12㌔～22㌔未満 | F14: 24900 | I14: 児童発達支援センター
A15: 居宅介護都市ガス22㌔以上 | B15: 居宅介護 | C15: - | D15: 都市ガス | E15: 22㌔以上 | F15: 28200 | I15: 医療型児童発達支援センター
A16: 居宅介護プロパンガス22㌔以上 | B16: 居宅介護 | C16: - | D16: プロパンガス | E16: 22㌔以上 | F16: 27700 | I16: 放課後等デイサービス
A17: 重度訪問介護都市ガス12㌔未満 | B17: 重度訪問介護 | C17: - | D17: 都市ガス | E17: 12㌔未満 | F17: 18300
A18: 重度訪問介護プロパンガス12㌔未満 | B18: 重度訪問介護 | C18: - | D18: プロパンガス | E18: 12㌔未満 | F18: 17800
A19: 重度訪問介護都市ガス12㌔～22㌔未満 | B19: 重度訪問介護 | C19: - | D19: 都市ガス | E19: 12㌔～22㌔未満 | F19: 25400 | I19: 同一建物減算有
A20: 重度訪問介護プロパンガス12㌔～22㌔未満 | B20: 重度訪問介護 | C20: - | D20: プロパンガス | E20: 12㌔～22㌔未満 | F20: 24900 | I20: 12㌔未満
A21: 重度訪問介護都市ガス22㌔以上 | B21: 重度訪問介護 | C21: - | D21: 都市ガス | E21: 22㌔以上 | F21: 28200 | I21: 12㌔～22㌔未満
A22: 重度訪問介護プロパンガス22㌔以上 | B22: 重度訪問介護 | C22: - | D22: プロパンガス | E22: 22㌔以上 | F22: 27700 | I22: 22㌔以上
A23: 同行援護都市ガス12㌔未満 | B23: 同行援護 | C23: - | D23: 都市ガス | E23: 12㌔未満 | F23: 18300
A24: 同行援護プロパンガス12㌔未満 | B24: 同行援護 | C24: - | D24: プロパンガス | E24: 12㌔未満 | F24: 17800
A25: 同行援護都市ガス12㌔～22㌔未満 | B25: 同行援護 | C25: - | D25: 都市ガス | E25: 12㌔～22㌔未満 | F25: 25400
A26: 同行援護プロパンガス12㌔～22㌔未満 | B26: 同行援護 | C26: - | D26: プロパンガス | E26: 12㌔～22㌔未満 | F26: 24900
A27: 同行援護都市ガス22㌔以上 | B27: 同行援護 | C27: - | D27: 都市ガス | E27: 22㌔以上 | F27: 28200
A28: 同行援護プロパンガス22㌔以上 | B28: 同行援護 | C28: - | D28: プロパンガス | E28: 22㌔以上 | F28: 27700
A29: 行動援護都市ガス12㌔未満 | B29: 行動援護 | C29: - | D29: 都市ガス | E29: 12㌔未満 | F29: 18300
A30: 行動援護プロパンガス12㌔未満 | B30: 行動援護 | C30: - | D30: プロパンガス | E30: 12㌔未満 | F30: 17800
A31: 行動援護都市ガス12㌔～22㌔未満 | B31: 行動援護 | C31: - | D31: 都市ガス | E31: 12㌔～22㌔未満 | F31: 25400
A32: 行動援護プロパンガス12㌔～22㌔未満 | B32: 行動援護 | C32: - | D32: プロパンガス | E32: 12㌔～22㌔未満 | F32: 24900
A33: 行動援護都市ガス22㌔以上 | B33: 行動援護 | C33: - | D33: 都市ガス | E33: 22㌔以上 | F33: 28200
A34: 行動援護プロパンガス22㌔以上 | B34: 行動援護 | C34: - | D34: プロパンガス | E34: 22㌔以上 | F34: 27700
A35: 重度障害者等包括支援都市ガス12㌔未満 | B35: 重度障害者等包括支援 | C35: - | D35: 都市ガス | E35: 12㌔未満 | F35: 18300
A36: 重度障害者等包括支援プロパンガス12㌔未満 | B36: 重度障害者等包括支援 | C36: - | D36: プロパンガス | E36: 12㌔未満 | F36: 17800
A37: 重度障害者等包括支援都市ガス12㌔～22㌔未満 | B37: 重度障害者等包括支援 | C37: - | D37: 都市ガス | E37: 12㌔～22㌔未満 | F37: 25400
A38: 重度障害者等包括支援プロパンガス12㌔～22㌔未満 | B38: 重度障害者等包括支援 | C38: - | D38: プロパンガス | E38: 12㌔～22㌔未満 | F38: 24900
A39: 重度障害者等包括支援都市ガス22㌔以上 | B39: 重度障害者等包括支援 | C39: - | D39: 都市ガス | E39: 22㌔以上 | F39: 28200
A40: 重度障害者等包括支援プロパンガス22㌔以上 | B40: 重度障害者等包括支援 | C40: - | D40: プロパンガス | E40: 22㌔以上 | F40: 27700
A41: =B41&D41&E41 -> 児訪問系都市ガス12㌔未満 | B41: 児訪問系 | C41: - | D41: 都市ガス | E41: 12㌔未満 | F41: 18300
A42: 児訪問系プロパンガス12㌔未満 | B42: 児訪問系 | C42: - | D42: プロパンガス | E42: 12㌔未満 | F42: 17800
A43: 児訪問系都市ガス12㌔～22㌔未満 | B43: 児訪問系 | C43: - | D43: 都市ガス | E43: 12㌔～22㌔未満 | F43: 25400
A44: 児訪問系プロパンガス12㌔～22㌔未満 | B44: 児訪問系 | C44: - | D44: プロパンガス | E44: 12㌔～22㌔未満 | F44: 24900
A45: 児訪問系都市ガス22㌔以上 | B45: 児訪問系 | C45: - | D45: 都市ガス | E45: 22㌔以上 | F45: 28200
A46: 児訪問系プロパンガス22㌔以上 | B46: 児訪問系 | C46: - | D46: プロパンガス | E46: 22㌔以上 | F46: 27700
A47: 居宅訪問型児童発達支援都市ガス12㌔未満 | B47: 居宅訪問型児童発達支援 | C47: - | D47: 都市ガス | E47: 12㌔未満 | F47: 18300
A48: 居宅訪問型児童発達支援プロパンガス12㌔未満 | B48: 居宅訪問型児童発達支援 | C48: - | D48: プロパンガス | E48: 12㌔未満 | F48: 17800
A49: 居宅訪問型児童発達支援都市ガス12㌔～22㌔未満 | B49: 居宅訪問型児童発達支援 | C49: - | D49: 都市ガス | E49: 12㌔～22㌔未満 | F49: 25400
A50: 居宅訪問型児童発達支援プロパンガス12㌔～22㌔未満 | B50: 居宅訪問型児童発達支援 | C50: - | D50: プロパンガス | E50: 12㌔～22㌔未満 | F50: 24900
A51: 居宅訪問型児童発達支援都市ガス22㌔以上 | B51: 居宅訪問型児童発達支援 | C51: - | D51: 都市ガス | E51: 22㌔以上 | F51: 28200
A52: 居宅訪問型児童発達支援プロパンガス22㌔以上 | B52: 居宅訪問型児童発達支援 | C52: - | D52: プロパンガス | E52: 22㌔以上 | F52: 27700
A53: 保育所等訪問支援都市ガス12㌔未満 | B53: 保育所等訪問支援 | C53: - | D53: 都市ガス | E53: 12㌔未満 | F53: 18300
A54: 保育所等訪問支援プロパンガス12㌔未満 | B54: 保育所等訪問支援 | C54: - | D54: プロパンガス | E54: 12㌔未満 | F54: 17800
A55: 保育所等訪問支援都市ガス12㌔～22㌔未満 | B55: 保育所等訪問支援 | C55: - | D55: 都市ガス | E55: 12㌔～22㌔未満 | F55: 25400
A56: 保育所等訪問支援プロパンガス12㌔～22㌔未満 | B56: 保育所等訪問支援 | C56: - | D56: プロパンガス | E56: 12㌔～22㌔未満 | F56: 24900
A57: 保育所等訪問支援都市ガス22㌔以上 | B57: 保育所等訪問支援 | C57: - | D57: 都市ガス | E57: 22㌔以上 | F57: 28200
A58: 保育所等訪問支援プロパンガス22㌔以上 | B58: 保育所等訪問支援 | C58: - | D58: プロパンガス | E58: 22㌔以上 | F58: 27700
B61: 通所系 | C61: 支給単位 | D61: 高圧かつ都市ガスを利用している場合 | E61: 高圧かつプロパンガスを利用している場合 | F61: 低圧かつ都市ガスを利用している場合 | G61: 低圧かつプロパンガスを利用している場合
B62: 生活介護 | C62: １事業所当たり | D62: 77500 | E62: 78900 | F62: 59300 | G62: 60700
B63: 短期入所（単独型）
B64: 療養介護
B65: 自立訓練（機能訓練）
B66: 自立訓練（生活訓練） | I66: 77500 | J66: 78900 | K66: 59300 | L66: 60700
B67: 自立訓練（宿泊型）
B68: 就労移行支援
B69: 就労継続支援Ａ型
B70: 就労継続支援Ｂ型
A72: key | B72: 通所系 | C72: 高圧・低圧 | D72: 都市ガス・プロパンガス | E72: 金額
A73: =B73&C73&D73 -> 生活介護高圧都市ガス | B73: 生活介護 | C73: 高圧 | D73: 都市ガス | E73: 77500
A74: =B74&C74&D74 -> 生活介護高圧プロパンガス | B74: 生活介護 | C74: 高圧 | D74: プロパンガス | E74: 78900
A75: 生活介護低圧都市ガス | B75: 生活介護 | C75: 低圧 | D75: 都市ガス | E75: 59300
A76: 生活介護低圧プロパンガス | B76: 生活介護 | C76: 低圧 | D76: プロパンガス | E76: 60700
A77: =B77&C77&D77 -> 短期入所（単独型）高圧都市ガス | B77: 短期入所（単独型） | C77: 高圧 | D77: 都市ガス | E77: 77500
A78: =B78&C78&D78 -> 短期入所（単独型）高圧プロパンガス | B78: 短期入所（単独型） | C78: 高圧 | D78: プロパンガス | E78: 78900
A79: 短期入所（単独型）低圧都市ガス | B79: 短期入所（単独型） | C79: 低圧 | D79: 都市ガス | E79: 59300
A80: 短期入所（単独型）低圧プロパンガス | B80: 短期入所（単独型） | C80: 低圧 | D80: プロパンガス | E80: 60700
A81: =B81&C81&D81 -> 療養介護高圧都市ガス | B81: 療養介護 | C81: 高圧 | D81: 都市ガス | E81: 77500
A82: =B82&C82&D82 -> 療養介護高圧プロパンガス | B82: 療養介護 | C82: 高圧 | D82: プロパンガス | E82: 78900
A83: 療養介護低圧都市ガス | B83: 療養介護 | C83: 低圧 | D83: 都市ガス | E83: 59300
A84: 療養介護低圧プロパンガス | B84: 療養介護 | C84: 低圧 | D84: プロパンガス | E84: 60700
A85: =B85&C85&D85 -> 自立訓練（機能訓練）高圧都市ガス | B85: 自立訓練（機能訓練） | C85: 高圧 | D85: 都市ガス | E85: 77500
A86: =B86&C86&D86 -> 自立訓練（機能訓練）高圧プロパンガス | B86: 自立訓練（機能訓練） | C86: 高圧 | D86: プロパンガス | E86: 78900
A87: 自立訓練（機能訓練）低圧都市ガス | B87: 自立訓練（機能訓練） | C87: 低圧 | D87: 都市ガス | E87: 59300
A88: 自立訓練（機能訓練）低圧プロパンガス | B88: 自立訓練（機能訓練） | C88: 低圧 | D88: プロパンガス | E88: 60700
A89: =B89&C89&D89 -> 自立訓練（生活訓練）高圧都市ガス | B89: 自立訓練（生活訓練） | C89: 高圧 | D89: 都市ガス | E89: 77500
A90: =B90&C90&D90 -> 自立訓練（生活訓練）高圧プロパンガス | B90: 自立訓練（生活訓練） | C90: 高圧 | D90: プロパンガス | E90: 78900
A91: 自立訓練（生活訓練）低圧都市ガス | B91: 自立訓練（生活訓練） | C91: 低圧 | D91: 都市ガス | E91: 59300
A92: 自立訓練（生活訓練）低圧プロパンガス | B92: 自立訓練（生活訓練） | C92: 低圧 | D92: プロパンガス | E92: 60700
A93: =B93&C93&D93 -> 自立訓練（宿泊型）高圧都市ガス | B93: 自立訓練（宿泊型） | C93: 高圧 | D93: 都市ガス | E93: 77500
A94: =B94&C94&D94 -> 自立訓練（宿泊型）高圧プロパンガス | B94: 自立訓練（宿泊型） | C94: 高圧 | D94: プロパンガス | E94: 78900
A95: 自立訓練（宿泊型）低圧都市ガス | B95: 自立訓練（宿泊型） | C95: 低圧 | D95: 都市ガス | E95: 59300
A96: 自立訓練（宿泊型）低圧プロパンガス | B96: 自立訓練（宿泊型） | C96: 低圧 | D96: プロパンガス | E96: 60700
A97: =B97&C97&D97 -> 就労移行支援高圧都市ガス | B97: 就労移行支援 | C97: 高圧 | D97: 都市ガス | E97: 77500
A98: =B98&C98&D98 -> 就労移行支援高圧プロパンガス | B98: 就労移行支援 | C98: 高圧 | D98: プロパンガス | E98: 78900
A99: 就労移行支援低圧都市ガス | B99: 就労移行支援 | C99: 低圧 | D99: 都市ガス | E99: 59300
A100: 就労移行支援低圧プロパンガス | B100: 就労移行支援 | C100: 低圧 | D100: プロパンガス | E100: 60700
A101: =B101&C101&D101 -> 就労継続支援Ａ型高圧都市ガス | B101: 就労継続支援Ａ型 | C101: 高圧 | D101: 都市ガス | E101: 77500
A102: =B102&C102&D102 -> 就労継続支援Ａ型高圧プロパンガス | B102: 就労継続支援Ａ型 | C102: 高圧 | D102: プロパンガス | E102: 78900
A103: 就労継続支援Ａ型低圧都市ガス | B103: 就労継続支援Ａ型 | C103: 低圧 | D103: 都市ガス | E103: 59300
A104: 就労継続支援Ａ型低圧プロパンガス | B104: 就労継続支援Ａ型 | C104: 低圧 | D104: プロパンガス | E104: 60700
A105: =B105&C105&D105 -> 就労継続支援Ｂ型高圧都市ガス | B105: 就労継続支援Ｂ型 | C105: 高圧 | D105: 都市ガス | E105: 77500
A106: =B106&C106&D106 -> 就労継続支援Ｂ型高圧プロパンガス | B106: 就労継続支援Ｂ型 | C106: 高圧 | D106: プロパンガス | E106: 78900
A107: 就労継続支援Ｂ型低圧都市ガス | B107: 就労継続支援Ｂ型 | C107: 低圧 | D107: 都市ガス | E107: 59300
A108: 就労継続支援Ｂ型低圧プロパンガス | B108: 就労継続支援Ｂ型 | C108: 低圧 | D108: プロパンガス | E108: 60700
B111: 共同生活援助系 | C111: 支給単位 | D111: 高圧かつ都市ガスを利用している場合 | E111: 高圧かつプロパンガスを利用している場合 | F111: 低圧かつ都市ガスを利用している場合 | G111: 低圧かつプロパンガスを利用している場合
B112: 共同生活援助（介護サービス包括型） | C112: １住居定員１人当たり | D112: 7300 | E112: 6600 | F112: 5900 | G112: 5200
B113: 共同生活援助（日中サービス支援型）
B114: 共同生活援助（外部サービス利用型）
A116: key | B116: 共同生活援助系 | C116: 高圧・低圧 | D116: 都市ガス・プロパンガス | E116: 金額 | F116: プロパンガスの場合、控除
A117: =B117&C117&D117 -> 共同生活援助（介護サービス包括型）高圧都市ガス | B117: 共同生活援助（介護サービス包括型） | C117: 高圧 | D117: 都市ガス | E117: 7300 | F117: 0
A118: =B118&C118&D118 -> 共同生活援助（介護サービス包括型）高圧プロパンガス | B118: 共同生活援助（介護サービス包括型） | C118: 高圧 | D118: プロパンガス | E118: 6600 | F118: 1500
A119: 共同生活援助（介護サービス包括型）低圧都市ガス | B119: 共同生活援助（介護サービス包括型） | C119: 低圧 | D119: 都市ガス | E119: 5900 | F119: 0
A120: 共同生活援助（介護サービス包括型）低圧プロパンガス | B120: 共同生活援助（介護サービス包括型） | C120: 低圧 | D120: プロパンガス | E120: 5200 | F120: 1500
A121: 共同生活援助（日中サービス支援型）高圧都市ガス | B121: 共同生活援助（日中サービス支援型） | C121: 高圧 | D121: 都市ガス | E121: 7300 | F121: 0
A122: 共同生活援助（日中サービス支援型）高圧プロパンガス | B122: 共同生活援助（日中サービス支援型） | C122: 高圧 | D122: プロパンガス | E122: 6600 | F122: 1500
A123: 共同生活援助（日中サービス支援型）低圧都市ガス | B123: 共同生活援助（日中サービス支援型） | C123: 低圧 | D123: 都市ガス | E123: 5900 | F123: 0
A124: 共同生活援助（日中サービス支援型）低圧プロパンガス | B124: 共同生活援助（日中サービス支援型） | C124: 低圧 | D124: プロパンガス | E124: 5200 | F124: 1500
A125: 共同生活援助（外部サービス利用型）高圧都市ガス | B125: 共同生活援助（外部サービス利用型） | C125: 高圧 | D125: 都市ガス | E125: 7300 | F125: 0
A126: 共同生活援助（外部サービス利用型）高圧プロパンガス | B126: 共同生活援助（外部サービス利用型） | C126: 高圧 | D126: プロパンガス | E126: 6600 | F126: 1500
A127: 共同生活援助（外部サービス利用型）低圧都市ガス | B127: 共同生活援助（外部サービス利用型） | C127: 低圧 | D127: 都市ガス | E127: 5900 | F127: 0
A128: 共同生活援助（外部サービス利用型）低圧プロパンガス | B128: 共同生活援助（外部サービス利用型） | C128: 低圧 | D128: プロパンガス | E128: 5200 | F128: 1500
B133: 児通所系 | C133: 支給単位 | D133: 高圧かつ都市ガスを利用している場合 | E133: 低圧かつプロパンガスを利用している場合 | F133: 低圧かつ都市ガスを利用している場合 | G133: 低圧かつプロパンガスを利用している場合
B134: 児童発達支援 | C134: １事業所当たり | D134: 38750 | E134: 38700 | F134: 29650 | G134: 29600
B135: 児童発達支援センター
B136: 医療型児童発達支援センター | I136: 38750 | J136: 38700 | K136: 29650 | L136: 29600
B137: 放課後等デイサービス
A139: key | B139: 児通所系 | C139: 高圧・低圧 | D139: 都市ガス・プロパンガス | E139: 金額
A140: =B140&C140&D140 -> 児童発達支援高圧都市ガス | B140: 児童発達支援 | C140: 高圧 | D140: 都市ガス | E140: 38750
A141: =B141&C141&D141 -> 児童発達支援高圧プロパンガス | B141: 児童発達支援 | C141: 高圧 | D141: プロパンガス | E141: 38700
A142: 児童発達支援低圧都市ガス | B142: 児童発達支援 | C142: 低圧 | D142: 都市ガス | E142: 29650
A143: 児童発達支援低圧プロパンガス | B143: 児童発達支援 | C143: 低圧 | D143: プロパンガス | E143: 29600
A144: =B144&C144&D144 -> 児童発達支援センター高圧都市ガス | B144: 児童発達支援センター | C144: 高圧 | D144: 都市ガス | E144: 38750
A145: =B145&C145&D145 -> 児童発達支援センター高圧プロパンガス | B145: 児童発達支援センター | C145: 高圧 | D145: プロパンガス | E145: 38700
A146: 児童発達支援センター低圧都市ガス | B146: 児童発達支援センター | C146: 低圧 | D146: 都市ガス | E146: 29650
A147: 児童発達支援センター低圧プロパンガス | B147: 児童発達支援センター | C147: 低圧 | D147: プロパンガス | E147: 29600
A148: =B148&C148&D148 -> 医療型児童発達支援センター高圧都市ガス | B148: 医療型児童発達支援センター | C148: 高圧 | D148: 都市ガス | E148: 38750
A149: =B149&C149&D149 -> 医療型児童発達支援センター高圧プロパンガス | B149: 医療型児童発達支援センター | C149: 高圧 | D149: プロパンガス | E149: 38700
A150: 医療型児童発達支援センター低圧都市ガス | B150: 医療型児童発達支援センター | C150: 低圧 | D150: 都市ガス | E150: 29650
A151: 医療型児童発達支援センター低圧プロパンガス | B151: 医療型児童発達支援センター | C151: 低圧 | D151: プロパンガス | E151: 29600
A152: =B152&C152&D152 -> 放課後等デイサービス高圧都市ガス | B152: 放課後等デイサービス | C152: 高圧 | D152: 都市ガス | E152: 38750
A153: =B153&C153&D153 -> 放課後等デイサービス高圧プロパンガス | B153: 放課後等デイサービス | C153: 高圧 | D153: プロパンガス | E153: 38700
A154: 放課後等デイサービス低圧都市ガス | B154: 放課後等デイサービス | C154: 低圧 | D154: 都市ガス | E154: 29650
A155: =B155&C155&D155 -> 放課後等デイサービス低圧プロパンガス | B155: 放課後等デイサービス | C155: 低圧 | D155: プロパンガス | E155: 29600
B159: 児訪問系 | C159: 支給単位 | D159: ⑮ 都市ガスを利用している場合 | E159: ⑯ プロパンガスを利用している場合
B160: 児訪問系 | C160: １事業所当たり | D160: 20800 | E160: 19800
B161: 居宅訪問型児童発達支援
B162: 保育所等訪問支援
A164: key | B164: 児訪問系 | C164: 高圧・低圧 | D164: 都市ガス・プロパンガス | E164: 金額
A165: =B165&D165 -> 児訪問系都市ガス | B165: 児訪問系 | C165: - | D165: 都市ガス | E165: 20800
A166: =B166&D166 -> 児訪問系プロパンガス | B166: 児訪問系 | C166: - | D166: プロパンガス | E166: 19800
A167: 居宅訪問型児童発達支援都市ガス | B167: 居宅訪問型児童発達支援 | C167: - | D167: 都市ガス | E167: 20800
A168: 居宅訪問型児童発達支援プロパンガス | B168: 居宅訪問型児童発達支援 | C168: - | D168: プロパンガス | E168: 19800
A169: 保育所等訪問支援都市ガス | B169: 保育所等訪問支援 | C169: - | D169: 都市ガス | E169: 20800
A170: 保育所等訪問支援プロパンガス | B170: 保育所等訪問支援 | C170: - | D170: プロパンガス | E170: 19800
B172: ※１ 「共同生活援助系」の１住居当たりの補助額の支給単位は定員とし、１住居当たりの定員が２～５人の場合は６人とする。また、プロパンガスの契約の場合の１住居当たりの補助額については、
B173: 補助単価に定員数を乗じた額から、埼玉県で別途実施される「埼玉県ＬＰガス料金負担軽減事業補助金」において軽減されるプロパンガス利用者負担額２，３００円を減算した額とする。
A179: ガソリン区分①（12㎞未満） | B179: 12
A180: ガソリン区分②（12㎞以上22㎞未満） | B180: 22
A181: ガソリン区分③（22㎞以上）
